{"text_format":"3","workbook":"xlsx","n_sheets":1,"sheets":["Împrumut de la bibliotecă"],"not_rendered":{"defined_names":4},"read":"whole","date_system":"1900"}

{"sheet":"Împrumut de la bibliotecă","index":0,"n_rows":9,"n_cols":8,"rows_kept":9,"merged":[[0,1,0,4],[0,5,0,6]]}
[null,"Foaie de evidență a cărților din bibliotecă",{"$nulls":3},"ZILE PÂNĂ LA RESTITUIRE: ",null,10]
["Întârziat","ELEV","E-MAIL DE CONTACT","NUMĂR DE TELEFON DE CONTACT","TITLUL CĂRȚII","DATA ÎMPRUMUTULUI","DATA RESTITUIRII","ZILE"]
[{"$f":"IFERROR(((Cărți[[#This Row],[DATA ÎMPRUMUTULUI]]+PerioadăPermisă)<TODAY())*(LEN(Cărți[[#This Row],[DATA RESTITUIRII]])=0)*(LEN(Cărți[[#This Row],[DATA ÎMPRUMUTULUI]])>0),0)","v":0},"Anca Boroi","cineva@example.com",755010000,"Căsuța din prerie",{"$f":"DATE(YEAR(TODAY()),1,14)","v":"2018-01-14"},{"$f":"DATE(YEAR(TODAY()),1,21)","v":"2018-01-21"},{"$f":"IFERROR(IF(Cărți[[#This Row],[DATA RESTITUIRII]]=\"\",IF(Cărți[[#This Row],[DATA ÎMPRUMUTULUI]]<>\"\", TODAY()-Cărți[[#This Row],[DATA ÎMPRUMUTULUI]],\"\"),Cărți[[#This Row],[DATA RESTITUIRII]]-Cărți[[#This Row],[DATA ÎMPRUMUTULUI]]), \"\")","v":7}]
[{"$f":"IFERROR(((Cărți[[#This Row],[DATA ÎMPRUMUTULUI]]+PerioadăPermisă)<TODAY())*(LEN(Cărți[[#This Row],[DATA RESTITUIRII]])=0)*(LEN(Cărți[[#This Row],[DATA ÎMPRUMUTULUI]])>0),0)","v":0},"Vlad Preda","cineva@example.com",755010001,"Rețeaua miraculoasă",{"$f":"DATE(YEAR(TODAY()),2,15)","v":"2018-02-15"},{"$f":"DATE(YEAR(TODAY()),2,18)","v":"2018-02-18"},{"$f":"IFERROR(IF(Cărți[[#This Row],[DATA RESTITUIRII]]=\"\",IF(Cărți[[#This Row],[DATA ÎMPRUMUTULUI]]<>\"\", TODAY()-Cărți[[#This Row],[DATA ÎMPRUMUTULUI]],\"\"),Cărți[[#This Row],[DATA RESTITUIRII]]-Cărți[[#This Row],[DATA ÎMPRUMUTULUI]]), \"\")","v":3}]
[{"$f":"IFERROR(((Cărți[[#This Row],[DATA ÎMPRUMUTULUI]]+PerioadăPermisă)<TODAY())*(LEN(Cărți[[#This Row],[DATA RESTITUIRII]])=0)*(LEN(Cărți[[#This Row],[DATA ÎMPRUMUTULUI]])>0),0)","v":0},"Bogdan Spirlea","cineva@example.com",755010002,"Vama fantomă",{"$f":"DATE(YEAR(TODAY()),2,17)","v":"2018-02-17"},{"$f":"DATE(YEAR(TODAY()),2,22)","v":"2018-02-22"},{"$f":"IFERROR(IF(Cărți[[#This Row],[DATA RESTITUIRII]]=\"\",IF(Cărți[[#This Row],[DATA ÎMPRUMUTULUI]]<>\"\", TODAY()-Cărți[[#This Row],[DATA ÎMPRUMUTULUI]],\"\"),Cărți[[#This Row],[DATA RESTITUIRII]]-Cărți[[#This Row],[DATA ÎMPRUMUTULUI]]), \"\")","v":5}]
[{"$f":"IFERROR(((Cărți[[#This Row],[DATA ÎMPRUMUTULUI]]+PerioadăPermisă)<TODAY())*(LEN(Cărți[[#This Row],[DATA RESTITUIRII]])=0)*(LEN(Cărți[[#This Row],[DATA ÎMPRUMUTULUI]])>0),0)","v":0},"Daniel Năstase","cineva@example.com",755010003,"Dl. Frisby și șoarecii din Nimh",{"$f":"DATE(YEAR(TODAY()),2,17)","v":"2018-02-17"},{"$f":"DATE(YEAR(TODAY()),2,25)","v":"2018-02-25"},{"$f":"IFERROR(IF(Cărți[[#This Row],[DATA RESTITUIRII]]=\"\",IF(Cărți[[#This Row],[DATA ÎMPRUMUTULUI]]<>\"\", TODAY()-Cărți[[#This Row],[DATA ÎMPRUMUTULUI]],\"\"),Cărți[[#This Row],[DATA RESTITUIRII]]-Cărți[[#This Row],[DATA ÎMPRUMUTULUI]]), \"\")","v":8}]
[{"$f":"IFERROR(((Cărți[[#This Row],[DATA ÎMPRUMUTULUI]]+PerioadăPermisă)<TODAY())*(LEN(Cărți[[#This Row],[DATA RESTITUIRII]])=0)*(LEN(Cărți[[#This Row],[DATA ÎMPRUMUTULUI]])>0),0)","v":0},"Magda Florea","cineva@example.com",755010004,"Matilda",{"$f":"DATE(YEAR(TODAY()),2,18)","v":"2018-02-18"},{"$f":"DATE(YEAR(TODAY()),2,28)","v":"2018-02-28"},{"$f":"IFERROR(IF(Cărți[[#This Row],[DATA RESTITUIRII]]=\"\",IF(Cărți[[#This Row],[DATA ÎMPRUMUTULUI]]<>\"\", TODAY()-Cărți[[#This Row],[DATA ÎMPRUMUTULUI]],\"\"),Cărți[[#This Row],[DATA RESTITUIRII]]-Cărți[[#This Row],[DATA ÎMPRUMUTULUI]]), \"\")","v":10}]
[{"$f":"IFERROR(((Cărți[[#This Row],[DATA ÎMPRUMUTULUI]]+PerioadăPermisă)<TODAY())*(LEN(Cărți[[#This Row],[DATA RESTITUIRII]])=0)*(LEN(Cărți[[#This Row],[DATA ÎMPRUMUTULUI]])>0),0)","v":1},"Laura Munteanu","cineva@example.com",755010005,"Cronicile din Narnia",{"$f":"DATE(YEAR(TODAY()),1,23)","v":"2018-01-23"},null,{"$f":"IFERROR(IF(Cărți[[#This Row],[DATA RESTITUIRII]]=\"\",IF(Cărți[[#This Row],[DATA ÎMPRUMUTULUI]]<>\"\", TODAY()-Cărți[[#This Row],[DATA ÎMPRUMUTULUI]],\"\"),Cărți[[#This Row],[DATA RESTITUIRII]]-Cărți[[#This Row],[DATA ÎMPRUMUTULUI]]), \"\")","v":164}]
[{"$f":"IFERROR(((Cărți[[#This Row],[DATA ÎMPRUMUTULUI]]+PerioadăPermisă)<TODAY())*(LEN(Cărți[[#This Row],[DATA RESTITUIRII]])=0)*(LEN(Cărți[[#This Row],[DATA ÎMPRUMUTULUI]])>0),0)","v":0},"Virginia Mateescu","cineva@example.com",755010006,"Vrăjitoarea de la Iazul Mierlei",{"$f":"TODAY()","v":"2018-07-06"},null,{"$f":"IFERROR(IF(Cărți[[#This Row],[DATA RESTITUIRII]]=\"\",IF(Cărți[[#This Row],[DATA ÎMPRUMUTULUI]]<>\"\", TODAY()-Cărți[[#This Row],[DATA ÎMPRUMUTULUI]],\"\"),Cărți[[#This Row],[DATA RESTITUIRII]]-Cărți[[#This Row],[DATA ÎMPRUMUTULUI]]), \"\")","v":0}]